Cogmind - Beta 14 @@@ ROGUE MODE // 2024.08.27 @ 23:56:59 Player: porkhorse Result: Destroyed by S-10 Pest with Light Assault Rifle Performance ------------- Evolutions (0) 0 Regions Visited (3) 600 Robots Destroyed (43) 215 Value Destroyed (886) 886 Prototype IDs (0) 0 Alien Tech Used (0) 0 Bonus (0) 0 TOTAL SCORE: 1701 Bonus ------- None Cogmind --------- Core Integrity 0/250 Matter 253/300 Energy 226/250 System Corruption 0% Temperature Cool (0) Movement Walking (260) Ox2 Location -10/Subcaves Parts ------- > --- POWER (1) -------- Ion Engine > --- PROPULSION (2) --- Aluminum Leg > --- UTILITY (2) ------ Heat Sink Medium Storage Unit > --- WEAPON (2) ------- Beam Cannon Beam Cannon > --- INVENTORY (10) --- Ion Engine Aluminum Leg Aluminum Leg Heat Sink Medium Matter Pod (100) Seismic Detector ECM Suite Particle Gun Grenade Launcher Hammer Peak State ------------ > --- POWER ------------ Ion Engine > --- PROPULSION ------- Light Treads Aluminum Leg > --- UTILITY ---------- Small Storage Unit Improved Terrain Scanner > --- WEAPON ----------- Small Laser Assault Rifle > --- INVENTORY -------- Light Ion Engine EM Pulse Gun [Rating: 9] Favorites ----------- Power Ion Engine Engine Ion Engine Propulsion Aluminum Leg Treads Light Treads Leg Aluminum Leg Hover Unit Hover Unit Utility Heat Sink Device Heat Sink Storage Small Storage Unit Weapon Beam Cannon Energy Gun Particle Gun Energy Cannon Beam Cannon Ballistic Gun Assault Rifle Launcher Grenade Launcher Impact Weapon Hammer Build | -11 -10 -10 -10 ------- Run | Yrd Mat Min Sub Slots Evolved . | . . . . Power . | . . . . Propulsion . | . . . . Utility . | . . . . Weapon . | . . . . Parts Attached 57 | 10 41 4 2 Power 5 | 1 4 . . Engine 5 | 1 4 . . Core . | . . . . Reactor . | . . . . Propulsion 18 | 5 13 . . Treads 2 | 2 . . . Leg 13 | 3 10 . . Wheel . | . . . . Hover 3 | . 3 . . Flight . | . . . . Utility 7 | 2 5 . . Device 4 | 1 3 . . Storage 3 | 1 2 . . Processor . | . . . . Hackware . | . . . . Protection . | . . . . Artifact . | . . . . Weapon 27 | 2 19 4 2 Energy Gun 2 | 1 1 . . Energy Cannon 10 | . 7 2 1 Ballistic Gun 7 | 1 6 . . Ballistic Cannon . | . . . . Launcher 7 | . 4 2 1 Special Weapon . | . . . . Impact Weapon 1 | . 1 . . Slashing Weapon . | . . . . Piercing Weapon . | . . . . Special Melee Weapon . | . . . . Unidentified Prototypes . | . . . . Parts Lost 6 | . 5 . 1 Power 2 | . 2 . . Propulsion 1 | . . . 1 Utility 1 | . 1 . . Weapon 2 | . 2 . . Highest Loss Streak 2 | . 2 . 1 To Critical Strikes . | . . . . Average Slot Usage (%) 99 | . 98 100 97 Engine 13 | . 13 14 14 Leg 27 | . 27 28 26 Device 12 | . 12 14 14 Storage 14 | . 15 14 14 Energy Gun 1 | . 2 . . Energy Cannon 19 | . 15 27 28 Ballistic Gun 6 | . 9 . . Peak Build Rating 9 | 9 9 8 8 Average Rating 7 | 6 7 7 7 On Entrance 6 | . 9 8 8 Naked Turns . | . . . . Heaviest Build 22 | 14 22 22 22 Greatest Support 40 | 40 20 20 20 Greatest Overweight (x) 4 | 4 3 1 2 Average Overweight (x) . | . . 1 1 Largest Inventory Capacity 10 | 8 10 10 10 Average Capacity 8 | 7 8 10 10 Most Carried 10 | 2 10 10 10 Average Carried 8 | 1 7 9 10 Final Capacity 10 | 8 10 10 10 Final Carried 10 | 2 10 10 10 Class Distribution -------------------- 79% | Scavenger-Mutant 20% | Mutant Dominant Class ---------------- Scavenger-Mutant | -10/Materials Scavenger-Mutant | -10/Mines Scavenger-Mutant | -10/Subcaves Resources | -11 -10 -10 -10 ----------- Run | Yrd Mat Min Sub Matter Collected 1071 | 256 767 48 . Remotely . | . . . . Salvage Created 1066 | 68 877 88 33 Parts 82 | 6 56 18 2 Haulers Intercepted . | . . . . Recyclers Shooed . | . . . . Parts Field Recycled . | . . . . Retrieved Matter . | . . . . Parts Self-Destructed 1 | . . . 1 Prevented . | . . . . Kills | -11 -10 -10 -10 ------- Run | Yrd Mat Min Sub Combat Hostiles Destroyed 35 | . 25 8 2 Guns 5 | . 5 . . Cannons 18 | . 14 2 2 AOE 12 | . 6 6 . Classes Destroyed 7 | 2 5 . . Worker 1 | . 1 . . Tunneler 2 | 1 . 1 . Recycler 2 | 1 1 . . Operator 1 | . 1 . . Watcher 2 | . 2 . . Swarmer 18 | . 8 8 2 Grunt 17 | . 17 . . Best Kill Streak 7 | 1 7 3 2 Combat Bots Only 6 | . 6 3 2 Max Kills in Single Turn 2 | 1 2 2 1 Gunslinging . | . . . . Exploded 2 | . 2 2 . Melee . | . . . . Uniques/NPCs Destroyed . | . . . . Combat | -11 -10 -10 -10 -------- Run | Yrd Mat Min Sub Hostile Shots Fired 175 | . 122 26 27 Missed 60 | . 37 12 11 Damage Taken 1159 | . 917 115 127 Core 252 | . 179 33 40 Absorbed by Shields . | . . . . Regen/Repaired (Parts) 118 | . 118 . . Core Remaining (%) 100 | 100 . . . Volleys Fired 92 | 3 78 7 4 Largest 2 | 2 2 2 2 Hottest 120 | 60 120 120 120 Shots Fired 175 | 6 147 14 8 Gun 52 | 6 46 . . Cannon 111 | . 93 10 8 Launcher 12 | . 8 4 . Special . | . . . . Kinetic 48 | 3 45 . . Thermal 115 | 3 94 10 8 Explosive 12 | . 8 4 . Electromagnetic . | . . . . Robot Hit Streak 7 | 3 7 3 3 Robot Miss Streak 4 | 1 4 1 2 Penetration Max . | . . . . Secondary Targets . | . . . . Shots Hit Robots 100 | 4 83 8 5 Core Hits 54 | 2 41 9 2 Critical Kills . | . . . . Critical Parts Destroyed . | . . . . Critical Strikes . | . . . . Melee Attacks 1 | . 1 . . Impact 1 | . 1 . . Slashing . | . . . . Piercing . | . . . . Sneak Attacks . | . . . . Combat Hostiles . | . . . . Follow-up Attacks . | . . . . Damage Inflicted 2387 | 53 1722 524 88 Guns 426 | 53 373 . . Cannons 1103 | . 928 87 88 Explosions 851 | . 414 437 . Melee . | . . . . Ramming 7 | . 7 . . Kinetic 402 | 29 373 . . Thermal 1127 | 24 928 87 88 Explosive 851 | . 414 437 . Electromagnetic . | . . . . Impact . | . . . . Slashing . | . . . . Piercing . | . . . . Highest Corruption . | . . . . Average Corruption . | . . . . Corruption Purged . | . . . . Corruption Blocked . | . . . . Overload Shots . | . . . . Overflow Damage 9 | . 3 6 . Projectiles . | . . . . Explosions 9 | . 3 6 . Melee . | . . . . Knockbacks . | . . . . Impact . | . . . . Kinetic . | . . . . Secondary . | . . . . Self-Inflicted Damage 11 | . 4 7 . Shots 1 | . . 1 . Rammed . | . . . . Targets Rammed 1 | . 1 . . Kicked 1 | . 1 . . Crushed . | . . . . Highest Temperature 569 | . 569 90 . Average Temperature 144 | . 148 45 . Received Heat Transfer 354 | . 354 . . Effects 15 | . 15 . . Shutdowns 1 | . 1 . . Interference 2 | . 2 . . Short Circuit 2 | . 2 . . Damage (minor) 2 | . 2 . . Damage (major) 7 | . 7 . . Damage (core) 1 | . 1 . . Siege Activations . | . . . . Robots Corrupted . | . . . . Combat Hostiles . | . . . . Parts Fried . | . . . . Impact Corruptions . | . . . . Robots Melted . | . . . . Combat Hostiles . | . . . . Parts Melted 3 | . 3 . . Heat Transferred 2344 | 50 1924 185 185 Parts Sabotaged . | . . . . Parts Stolen . | . . . . Parts Stripped . | . . . . Power Chain Reactions . | . . . . Alert | -11 -10 -10 -10 ------- Run | Yrd Mat Min Sub Peak Influence 385 | 10 385 257 . Initial 123 | . 6 123 . Average 189 | 3 221 150 . Maximum Alert Level 1 | . 1 1 . Low Security (%) 45 | 100 33 64 . Level 1 54 | . 66 35 . Level 2 . | . . . . Level 3 . | . . . . Level 4 . | . . . . Level 5 . | . . . . High Security . | . . . . Max Security . | . . . . Squads Dispatched 6 | . 6 . . Investigation 3 | . 3 . . Extermination . | . . . . Reinforcement 3 | . 3 . . Assault . | . . . . Garrison . | . . . . Intercept . | . . . . Searches Triggered . | . . . . Construction Impeded . | . . . . Haulers Reinforced . | . . . . Active Scanning Responses . | . . . . Cargo Convoy Interrupts . | . . . . Stealth | -11 -10 -10 -10 --------- Run | Yrd Mat Min Sub Distress Signals . | . . . . Communications Jammed . | . . . . Distress Signals . | . . . . Times Spotted 58 | . 46 9 3 Peak Tracking Total 4 | . 4 3 3 Tactical Retreats 1 | . 1 . . Traps | -11 -10 -10 -10 ------- Run | Yrd Mat Min Sub Traps Triggered . | . . . . Indirectly . | . . . . Trap Hack Attempts . | . . . . Triggered . | . . . . Disarmed . | . . . . Reprogrammed . | . . . . Reused . | . . . . Traps Extracted . | . . . . Installed . | . . . . Triggered . | . . . . Machines | -11 -10 -10 -10 ---------- Run | Yrd Mat Min Sub Machines Disabled 4 | . 3 1 . Max in Single Turn 2 | . 2 1 . Machines Repaired . | . . . . Machines Dismantled . | . . . . Machines Sabotaged . | . . . . Overloaded Fab Kills . | . . . . Hacking | -11 -10 -10 -10 --------- Run | Yrd Mat Min Sub Machines Accessed 7 | . 7 . . Terminals 4 | . 4 . . Fabricators . | . . . . Repair Stations 1 | . 1 . . Recycling Units 2 | . 2 . . Scanalyzers . | . . . . Garrison Access . | . . . . Total Hacks 32 | . 32 . . Successful 14 | . 14 . . Failed 18 | . 18 . . Catastrophic 6 | . 6 . . Database Lockouts . | . . . . Manual 13 | . 13 . . Terminals 17 | . 17 . . Fabricators . | . . . . Repair Stations 5 | . 5 . . Recycling Units 10 | . 10 . . Scanalyzers . | . . . . Garrison Access . | . . . . Terminal Hacks 3 | . 3 . . Robot Analysis 1 | . 1 . . Locate Traps 1 | . 1 . . Zone Layout 1 | . 1 . . Fabricator Hacks . | . . . . Repair Station Hacks 4 | . 4 . . Scan Component 2 | . 2 . . Repair 2 | . 2 . . Recycling Unit Hacks 6 | . 6 . . Recycle Component 1 | . 1 . . Report Inventory 3 | . 3 . . Retrieve Components 2 | . 2 . . Scanalyzer . | . . . . Garrison Access Hacks . | . . . . Unauthorized Hacks 1 | . 1 . . Terminals . | . . . . Fabricators . | . . . . Repair Stations . | . . . . Recycling Units 1 | . 1 . . Monitor 1 | . 1 . . Scanalyzers . | . . . . Garrison Access . | . . . . Data Cores Recovered 1 | . 1 . . Used . | . . . . Hacking Detections 6 | . 6 . . Full Trace Events 3 | . 3 . . Feedback Events . | . . . . Feedback Blocked . | . . . . Robot Schematics Acquired . | . . . . Robots Built . | . . . . Authchips . | . . . . Time . | . . . . Total Robot Build Rating . | . . . . Part Schematics Acquired . | . . . . Parts Built . | . . . . Authchips . | . . . . Time . | . . . . Total Part Build Rating . | . . . . Parts Repaired 2 | . 2 . . Time 52 | . 52 . . Parts Recycled 1 | . 1 . . Recycled Matter . | . . . . Retrieved Matter . | . . . . Retrieved Components 14 | . 14 . . Parts Scanalyzed . | . . . . Part Schematics Acquired . | . . . . Parts Damaged . | . . . . Bothacking | -11 -10 -10 -10 ------------ Run | Yrd Mat Min Sub Used RIF Installer . | . . . . Robots Hacked . | . . . . Non-combat . | . . . . Combat . | . . . . Robot Hacks Applied . | . . . . Relay Couplers Released . | . . . . Fabnet Peak Effective % . | . . . . Robots Rewired . | . . . . Allies Hacked . | . . . . Hacks Repelled . | . . . . Allies | -11 -10 -10 -10 -------- Run | Yrd Mat Min Sub Total Allies . | . . . . Largest Group . | . . . . Highest-Rated Group . | . . . . Highest-Rated Ally . | . . . . Total Orders . | . . . . Ally Attacks . | . . . . Total Damage . | . . . . Kills . | . . . . Allies Corrupted . | . . . . Allies Melted . | . . . . Intel | -11 -10 -10 -10 ------- Run | Yrd Mat Min Sub Robot Analysis Total 1 | . 1 . . Derelict Logs Recovered 1 | . . 1 . Drone Launches . | . . . . Drone Recoveries . | . . . . Exploration | -11 -10 -10 -10 ------------- Run | Yrd Mat Min Sub Turns Passed 2977 | 146 1907 849 75 Spaces Moved 1626 | 77 1090 428 31 Core 17 | 13 4 . . Treads 17 | 17 . . . Legs 1591 | 47 1085 428 31 Wheels . | . . . . Hover 1 | . 1 . . Flight . | . . . . Fastest Speed 50 | 50 120 190 190 Average Speed 145 | 157 125 190 192 Slowest Speed 260 | 250 200 190 260 Overloaded Moves . | . . . . Propulsion Burnouts . | . . . . Robots Hopped . | . . . . Cave-ins Triggered . | . . . . Exploration Rate (%) 42 | 5 83 77 4 Regions Visited 3 Branch Regions 2 Pre-discovered Areas 1 | . . 1 . Known Exits Taken . | . . . . Unknown Exits Taken 3 | 1 1 1 . Scrap Searched 1 | . . 1 . Spaces Dug 1 | . 1 . . Terrain Destroyed 45 | . 19 26 . Melee 1 | . 1 . . Projectile . | . . . . AOE 44 | . 18 26 . Terrain Rammed 1 | . 1 . . Walls Destroyed . | . . . . Machines Disabled . | . . . . Actions | -11 -10 -10 -10 --------- Run | Yrd Mat Min Sub Total 2056 | 91 1475 450 40 Wait 228 | . 219 6 3 Move 1623 | 76 1089 427 31 Hop . | . . . . Pick Up 29 | 2 24 3 . Fast Attach 10 | 7 3 . . Attach 4 | . 4 . . Detach . | . . . . Swap 43 | 3 34 4 2 Drop 24 | . 21 3 . Fire 92 | 3 78 7 4 Melee 1 | . 1 . . Ram 1 | . 1 . . Kick 1 | . 1 . . Crush . | . . . . Escape Stasis . | . . . . Rewire . | . . . . Trap . | . . . . Miscellaneous . | . . . . Route ------- -11/Scrapyard -10/Materials (discovered 3 exits: [*Mat x2] / [*Min]) -10/Mines (discovered 2 exits: [*Mat] / [*Sub]) -10/Subcaves History --------- Turn | Location | Event 6 | -11/Scrapyard | Discovered new exit (range 16) 147 | -11/Scrapyard | Entered Materials 232 | -10/Materials | Discovered new exit (range 7) 307 | -10/Materials | Build established: Mutant 389 | -10/Materials | Discovered new exit (range 14) 859 | -10/Materials | Build established: Scavenger-Mutant 966 | -10/Materials | Discovered new exit (range 4) 1273 | -10/Materials | Repaired Grenade Launcher 1422 | -10/Materials | Core integrity fell below 50% 1910 | -10/Materials | Repaired Beam Cannon 2054 | -10/Materials | Entered Mines 2153 | -10/Mines | Core integrity fell below 20% 2292 | -10/Mines | Learned location of Storage (-7) 2300 | -10/Mines | Learned Materials garrison access intel 2310 | -10/Mines | Discovered new exit (range 9) 2865 | -10/Mines | Discovered new exit (range 11) 2903 | -10/Mines | Entered Subcaves 2978 | -10/Subcaves | Destroyed by S-10 Pest with Light Assault Rifle Last Messages --------------- their mining defense operations..." 02453_ M1-IC3(g) slips into the shadows. 02529_ T-07 Excavator is excavating. 02726_ S-10 Pest destroyed. 02726_ Destroyed Lgt. Ion Engine. 02726_ S-10 Pest destroyed. 02739_ The unstable cave ceiling collapses. 02741_ Acquired 8 matter. 02750_ The unstable cave ceiling collapses. 02865_ EXIT=FOUND 02883_ T-07 Excavator is excavating. LOCATION=UNKNOWN AMBIENT_HEAT=-10 GOAL=ESCAPE 02965_ Aluminum Leg destroyed. 02965_ S-10 Pest destroyed. 02968_ Subatomizers dissect the Lgt. Ion Engine. 02968_ S-10 Pest destroyed. 02969_ Lgt. Ion Engine fries itself beyond repair. Map ----- +----------------------------------------------------+ | ?????????????????????????????????????????????? | | ?????????????????????????????????????????????? | | ?????????????????????????????????????????????? | | ?????????????????????????????????????????????? | | ?????????????????????????????????????????????? | | ?????????????????????????????????????????????? | | ?????????????????????????????????????????????? | | ?????????????????????????????????????????????? | | ?????????????????????????????????????????????? | | ?????????????????????????????????????????????? | | ?????????????????????????????????????????????? | | ???????????????????????????? ????????????????? | | ???????????????????????????? ???????????????? | | ???????????????????????????? #??????????????? | | ??????????????????????????? ???????????????? | | ??????????????????????????? ???????????????? | | ??????????????????????????? ##??????????????? | | ??????????????????????????? #??????????????? | | ??????????????????????????? ???????????????? | | ??????????????????????????? #???????????????? | | ?????????????????????????? ##??????????????? | | ????????????????????????### %[#??????????????? | | ????????????????????????# s ##??????????????? | | ????????????????????????# #??????????????? | | ???????????????????????## #??????????????? | | ???????????????????????# @ #???????????????? | | ???????????????????????## ##??????????????? | | ????????????????????????# #??????????????? | | ????????????????????????# #??????????????? | | ????????????????????????# #??????????????? | | ??????????????? ?????### #??????????????? | | ?????????????? ????# ##?????????????? | | ?????????????? ???### #?????????????? | | ????????????? ????### #?????????????? | | ???????????? ###?## #?????????????? | | ???????????? ## #?????????????? | | ???????????? #?????????????? | | ???????????? ### #?????????????? | | ??????????#??? ???????# #?????????????? | | ?????????## ???????????## ##?????????????? | | ?????????# ???????????## #??????????????? | | ????????? ?????????### ##??????????????? | | ?????????? ????????# # #???????????????? | | ???????????? ????#### ##??????????????? | | ?????????????# ?### ##?????????????? | | ?????????????## ## #?????????????? | | ?????????????# #?????????????? | | ?????????????# #?????????????? | | ?????????????## ##?????????????? | | ??????????????## ###??????????????? | +----------------------------------------------------+ Best States ------------- Heat Dissipation 35 Energy Generation 10 Energy Capacity 250 Matter Stores 400 Matter Capacity 400 Sight Range 16 Terrain Scan Range 16 Terrain Scan Density 10 Evasion (%) 55 Recoil Reduction 2 Item Schematics ----------------- None Robot Schematics ------------------ None Fabricated ------------ Nothing Alien Tech Used ----------------- None Achievements -------------- None Challenges ------------ None Game ------ Seed SlugAerolevDeflector Manual? 0 Play Time 00:25:01 Cumulative 25.9 hours Start 2024.08.27 @ 23:24:45 End 2024.08.27 @ 23:56:59 Sessions 2 Manual Loads 0 Difficulty Rogue Special Mode None Game No. 30 Rogue 11 Adventurer 19 Explorer 0 Win Type - Total 0 Types 0/0/0/0/0/0/0/0/0 Lore% 7 Gallery% 21 Achievement% 17 Wizard Run 0 Options --------- Layout 1 ASCII 0 Keyboard 1 Movement Arrows Keybinds 0 Fullscreen 2 Font 24/Smallcaps Map View 50x35 Zoom Use 0% Tactical HUD 1 Map Filters NONE Filters NONE Steam 1 RUN: 036e7251-599d-4c66-a10c-3db12da59f90